Cogmind - Beta 13 @@@ ROGUE MODE // 2024.04.22 @ 11:40:39 Player: sick0r Result: Destroyed by Enhanced Grunt with Neutron Cannon Performance ------------- Evolutions (4) 2000 Regions Visited (12) 2400 Robots Destroyed (207) 1035 Value Destroyed (6533) 6533 Prototype IDs (219) 4380 Alien Tech Used (0) 0 Bonus (3573) 3573 TOTAL SCORE: 19921 Bonus ------- High Alert Combat Kills 388 Aligned with FarCom 300 Met Data Miner 300 Used Data Conduit 3000 Friendly Fire -415 Cogmind --------- Core Integrity 0/850 Matter 150/300 Energy 100/100 System Corruption 12% Temperature Cool (0) Movement Core (1350) Ox26 Location -6/Data Miner Parts ------- > --- POWER (2) -------- (None) > --- PROPULSION (4) --- (None) > --- UTILITY (6) ------ Huge Storage Unit Improved Targeting Computer Improved Melee Analysis Suite Hacking Suite Hacking Suite > --- WEAPON (3) ------- (None) > --- INVENTORY (25) --- Advanced Heat Sink Compact Battery (200) Compact Battery (200) High-capacity Matter Pod (200) Matter Filter Energy Filter Weapon Cycler Microactuators Actuator Array Improved Reaction Control System Improved Utility Shielding Hardened Medium Armor Plating Thermal Shield Hardlight Generator Hacking Suite Improved System Restoration Module Field Recycling Unit (8) Improved Datajack Power Maul Power Sword Peak State ------------ > --- POWER ------------ Improved Deuterium Engine Reinforced Deuterium Engine > --- PROPULSION ------- VSS Leg Flexi-carbon Leg Flexi-carbon Leg Flexi-carbon Leg > --- UTILITY ---------- Huge Storage Unit Improved Targeting Computer Hacking Suite Hacking Suite System Shield Trap Reconfigurator > --- WEAPON ----------- Gauss Rifle Coil Gun Gauss Cannon > --- INVENTORY -------- Carbon-fiber Leg Flexi-carbon Leg Potential Leg Potential Leg Improved Cooling System High-capacity Matter Pod Improved Melee Analysis Suite Matter Filter Energy Filter Weapon Cycler Actuator Array Improved Reaction Control System Power Shielding Improved Utility Shielding Improved Light Armor Plating Hardlight Generator Improved System Restoration Module Beamcaster Latent Energy Streamer Plasma Cannon Heavy Missile Launcher Improved Datajack Power Maul Chainsword Power Sword [Rating: 71] Favorites ----------- Power Improved Ion Engine Engine Improved Ion Engine Power Core Light Nuclear Core Propulsion Flexi-carbon Leg Treads Advanced Treads Leg Flexi-carbon Leg Wheel Wheel Utility Improved Targeting Computer Device Improved Cooling System Storage Large Storage Unit Processor Improved Targeting Computer Hackware Hacking Suite Protection Improved Light Armor Plating Weapon Gauss Rifle Energy Gun Beamcaster Energy Cannon Latent Energy Streamer Ballistic Gun Gauss Rifle Ballistic Cannon Gauss Cannon Launcher Heavy Missile Launcher Impact Weapon Great Maul Slashing Weapon Chainsword Piercing Weapon Spear Special Melee Weapon Datajack Build | -11 -10 -10 -9 -9 -9 -8 -8 -7 -6 -6 -6 -6 ------- Run | Yrd Mat Min Mat Min Exi Min Mat Fac Fac Low Low Dat Slots Evolved 8 | . . . 2 . . . 2 2 2 . . . Power 1 | . . . . . . . 1 . . . . . Propulsion 2 | . . . 1 . . . . 1 . . . . Utility 4 | . . . 1 . . . 1 1 1 . . . Weapon 1 | . . . . . . . . . 1 . . . Parts Attached 252 | 7 6 12 30 7 8 9 65 52 44 5 . 7 Power 22 | 1 1 1 1 2 . 1 5 4 2 2 . 2 Engine 12 | 1 1 1 1 1 . 1 2 2 2 . . . Core 10 | . . . . 1 . . 3 2 . 2 . 2 Reactor . | . . . . . . . . . . . . . Propulsion 67 | 3 . 6 10 . 3 1 13 17 12 1 . 1 Treads 13 | 1 . 2 10 . . . . . . . . . Leg 32 | 2 . . . . 3 1 9 3 12 1 . 1 Wheel 22 | . . 4 . . . . 4 14 . . . . Hover . | . . . . . . . . . . . . . Flight . | . . . . . . . . . . . . . Utility 66 | 1 3 1 3 1 3 3 18 15 18 . . . Device 22 | . . . . 1 2 . 5 6 8 . . . Storage 10 | 1 2 1 . . . 1 3 . 2 . . . Processor 4 | . . . 1 . . . 1 1 1 . . . Hackware 4 | . . . . . . . 1 2 1 . . . Protection 26 | . 1 . 2 . 1 2 8 6 6 . . . Artifact . | . . . . . . . . . . . . . Weapon 97 | 2 2 4 16 4 2 4 29 16 12 2 . 4 Energy Gun 13 | . . . 1 . 1 . 5 5 1 . . . Energy Cannon 10 | . . . 1 . 1 1 4 . 3 . . . Ballistic Gun 44 | 2 2 4 9 3 . 3 10 4 2 2 . 3 Ballistic Cannon 6 | . . . . . . . . 5 1 . . . Launcher 7 | . . . 3 . . . 1 . 2 . . 1 Special Weapon . | . . . . . . . . . . . . . Impact Weapon 3 | . . . . . . . 1 1 1 . . . Slashing Weapon 12 | . . . 2 . . . 8 . 2 . . . Piercing Weapon 1 | . . . . . . . . 1 . . . . Special Melee Weapon 1 | . . . . 1 . . . . . . . . Unidentified Prototypes 8 | . . . 1 1 3 . 1 2 . . . . Parts Lost 55 | . 2 4 1 . . 2 7 12 10 2 . 15 Power 12 | . . 1 . . . 1 3 1 1 1 . 4 Propulsion 20 | . . 2 . . . . . 8 4 1 . 5 Utility 8 | . 1 . . . . 1 3 1 1 . . 1 Weapon 15 | . 1 1 1 . . . 1 2 4 . . 5 Highest Loss Streak 15 | . 2 3 1 . . 1 4 5 4 2 . 15 To Critical Strikes 1 | . . 1 . . . . . . . . . . Average Slot Usage (%) 97 | . 88 99 99 100 99 99 97 96 97 97 100 92 Engine 9 | . 14 13 10 10 . 9 8 11 12 2 . . Core 3 | . . . . . 11 1 8 1 . 8 13 11 Treads 7 | . . . 29 33 25 . . . . . . . Leg 15 | . 28 2 . . 7 32 25 1 21 25 26 22 Wheel 5 | . . 25 3 . . . . 26 4 . . . Device 2 | . . . . . 7 . 2 11 2 . . . Storage 10 | . 14 28 11 11 11 11 9 7 6 6 6 6 Processor 7 | . . . 10 11 11 10 6 7 7 13 13 13 Hackware 5 | . . . . . . . 1 3 18 20 20 19 Protection 6 | . 3 . 10 10 3 11 15 6 2 . . . Ballistic Gun 16 | . 27 28 19 19 17 20 10 5 9 9 13 10 Slashing Weapon 1 | . . . . . . . 4 . 1 6 6 5 Naked Turns . | . . . . . . . . . . . . . Heaviest Build 131 | 12 33 37 40 36 36 45 118 129 131 118 104 104 Greatest Support 80 | 20 20 20 68 67 67 60 75 58 78 80 80 80 Greatest Overweight (x) 26 | 2 1 1 1 . 1 . 11 7 4 1 1 26 Average Overweight (x) . | . . 1 . . . . 1 2 1 1 1 1 Largest Inventory Capacity 25 | 8 15 15 15 15 15 15 25 25 25 25 25 25 Average Capacity 19 | 7 13 15 15 15 15 15 24 25 25 25 25 25 Most Carried 25 | 8 15 15 15 15 15 15 25 25 25 25 25 25 Average Carried 18 | 5 11 14 14 14 14 14 20 24 23 23 24 24 Final Capacity 25 | 8 15 15 15 15 15 15 25 25 25 25 25 25 Final Carried 25 | 5 15 15 15 15 15 15 25 25 25 25 25 20 Class Distribution -------------------- 49% | Mutant 38% | Scavenger-Mutant 5% | Hacker-Gunner 3% | Hacker-Mutant Dominant Class ---------------- Mutant | -10/Materials Scavenger-Mutant | -10/Mines Mutant | -9/Materials Mutant | -9/Mines Mutant | -9/Exiles Mutant | -8/Mines Scavenger-Mutant | -8/Materials Scavenger-Mutant | -7/Factory Hacker-Gunner | -6/Factory Scavenger-Mutant | -6/Lower Caves Scavenger-Mutant | -6/Lower Caves Scavenger-Mutant | -6/Data Miner Resources | -11 -10 -10 -9 -9 -9 -8 -8 -7 -6 -6 -6 -6 ----------- Run | Yrd Mat Min Mat Min Exi Min Mat Fac Fac Low Low Dat Matter Collected 6044 | 236 484 397 825 23 . 364 1077 1390 1034 200 14 . Remotely . | . . . . . . . . . . . . . Salvage Created 7577 | . 846 185 1466 . . 303 1285 1755 1404 333 . . Parts 446 | . 60 16 106 . . 14 74 86 78 12 . . Haulers Intercepted 2 | . . . . . . . 2 . . . . . Recyclers Shooed 9 | . 1 1 1 . . . . 1 5 . . . Parts Field Recycled 15 | . . . . . . . . . 15 . . . Retrieved Matter 38 | . . . . . . . . . 38 . . . Parts Self-Destructed 16 | . . . . . . . . . . 16 . . Prevented 1 | . . . . . . . . . . 1 . . Kills | -11 -10 -10 -9 -9 -9 -8 -8 -7 -6 -6 -6 -6 ------- Run | Yrd Mat Min Mat Min Exi Min Mat Fac Fac Low Low Dat Combat Hostiles Destroyed 140 | . 19 6 31 . . 5 21 32 18 8 . . Melee 6 | . . . . . . . 4 . 2 . . . Guns 94 | . 18 6 28 . . 5 15 9 5 8 . . Cannons 24 | . . . . . . . . 21 3 . . . AOE 16 | . 1 . 3 . . . 2 2 8 . . . Classes Destroyed 18 | . 8 1 2 . . 1 2 2 2 . . . Worker 12 | . 1 . 1 . . . 1 1 8 . . . Builder 17 | . 1 . 1 . . . 2 2 11 . . . Tunneler 3 | . 1 . . . . 1 1 . . . . . Hauler 2 | . . . . . . . 2 . . . . . Recycler 16 | . 1 . 3 . . . 3 6 3 . . . Mechanic 1 | . . . . . . . . 1 . . . . Operator 5 | . 2 . 1 . . . 1 1 . . . . Watcher 9 | . 3 . 4 . . . 1 . 1 . . . Swarmer 24 | . 3 3 8 . . . 2 3 . 5 . . Grunt 80 | . 16 2 14 . . 3 14 20 9 2 . . Brawler 3 | . . . . . . . 1 . 1 1 . . Duelist 4 | . . . 1 . . 1 1 1 . . . . Protector 1 | . . . 1 . . . . . . . . . Sentry 16 | . . 1 7 . . . 2 5 1 . . . Specialist 2 | . . . . . . . . . 2 . . . Hunter 7 | . . . . . . 2 1 1 3 . . . Programmer 3 | . . . . . . . . 2 1 . . . Heavy 1 | . . . . . . . . . 1 . . . Thug 1 | . . . 1 . . . . . . . . . Best Kill Streak 10 | . 4 2 5 . . 2 7 9 10 5 . . Combat Bots Only 6 | . 4 2 5 . . 2 4 6 3 5 . . Max Kills in Single Turn 4 | . 2 1 3 . . 1 3 3 4 1 . . Gunslinging 1 | . . . 1 . . . . . . . . . Exploded 3 | . 1 . 3 . . . 2 1 3 . . . Melee 1 | . . . . . . . 1 . 1 . . . Uniques/NPCs Destroyed . | . . . . . . . . . . . . . Combat | -11 -10 -10 -9 -9 -9 -8 -8 -7 -6 -6 -6 -6 -------- Run | Yrd Mat Min Mat Min Exi Min Mat Fac Fac Low Low Dat Hostile Shots Fired 889 | . 83 41 130 . . 38 108 278 136 24 2 49 Missed 258 | . 30 10 30 . . 7 18 103 40 8 1 11 Damage Taken 10176 | . 588 288 1376 . . 555 1643 1857 1845 250 . 1774 Core 1683 | . 66 51 209 . . 28 277 179 139 13 . 721 Absorbed by Shields 332 | . . . . . . . 48 232 52 . . . Redirected to Shielding 47 | . . . . . . . 47 . . . . . Regen/Repaired (Parts) 708 | . 88 . 343 . . . 188 89 . . . . Core Remaining (%) 63 | 100 . 53 . . . 40 49 74 . . . . Volleys Fired 459 | . 75 17 88 . . 24 64 107 63 15 1 5 Largest 3 | . 2 2 2 . . 2 2 2 3 2 2 2 Hottest 155 | . 40 43 98 . . 98 155 103 147 88 56 67 Shots Fired 882 | . 136 34 168 . . 38 123 214 131 27 2 9 Gun 686 | . 136 34 163 . . 37 115 99 71 22 2 7 Cannon 171 | . . . . . . 1 4 115 46 5 . . Launcher 25 | . . . 5 . . . 4 . 14 . . 2 Special . | . . . . . . . . . . . . . Kinetic 736 | . 136 34 153 . . 34 76 190 82 22 2 7 Thermal 103 | . . . 10 . . 3 41 15 34 . . . Explosive 25 | . . . 5 . . . 4 . 14 . . 2 Electromagnetic 18 | . . . . . . 1 2 9 1 5 . . Robot Hit Streak 17 | . 11 6 17 . . 9 6 13 14 5 1 3 Robot Miss Streak 6 | . 4 2 6 . . 2 6 2 5 4 1 2 Penetration Max 1 | . . . . . . 1 1 1 1 1 . . Secondary Targets 8 | . 2 1 3 . . . 1 1 . . . . Max Gunslinging Chain 1 | . 1 1 1 . . . 1 1 . . . . Shots Hit Robots 595 | . 86 20 110 . . 29 80 151 94 16 3 6 Core Hits 325 | . 44 7 61 1 . 13 44 72 62 15 . 6 Critical Kills 6 | . . . . . . . 1 1 2 2 . . Critical Parts Destroyed 6 | . 2 . . . . 1 . 1 1 1 . . Critical Strikes 31 | . 2 . . . . 1 4 17 4 3 . . Burn 3 | . . . . . . . . 2 1 . . . Meltdown 1 | . . . . . . . . . 1 . . . Destroy 11 | . 2 . . . . 1 1 2 2 3 . . Blast 13 | . . . . . . . . 13 . . . . Sever 3 | . . . . . . . 3 . . . . . Melee Attacks 61 | . . . 3 . . . 35 1 13 5 3 1 Impact 4 | . . . . . . . 2 1 1 . . . Slashing 57 | . . . 3 . . . 33 . 12 5 3 1 Piercing . | . . . . . . . . . . . . . Sneak Attacks 11 | . . . 1 . . . 3 . 6 . . 1 Combat Hostiles . | . . . . . . . . . . . . . Follow-up Attacks 6 | . . . . . . . 3 . 2 1 . . Damage Inflicted 16046 | . 1339 178 2301 3 . 684 2527 3988 4013 489 83 441 Guns 7817 | . 1085 178 1732 . . 529 1352 1468 1054 318 16 85 Cannons 3116 | . . . . . . . 49 2250 811 6 . . Explosions 3642 | . 251 . 504 . . 155 532 270 1536 120 . 274 Melee 1465 | . . . 65 . . . 594 . 612 45 67 82 Ramming 6 | . 3 . . 3 . . . . . . . . Kinetic 9213 | . 1085 178 1567 . . 467 937 3295 1265 318 16 85 Thermal 1738 | . . . 165 . . 62 464 455 592 . . . Explosive 2774 | . 251 . 504 . . . 439 121 1185 . . 274 Electromagnetic 850 | . . . . . . 155 93 117 359 126 . . Impact . | . . . . . . . . . . . . . Slashing 1465 | . . . 65 . . . 594 . 612 45 67 82 Piercing . | . . . . . . . . . . . . . Highest Corruption 14 | . 2 2 . . . 4 14 1 4 12 12 12 Average Corruption 5 | . 2 2 . . . 4 8 1 1 9 12 12 Corruption Purged 1 | . . . . . . . . 1 . . . . Corruption Blocked . | . . . . . . . . . . . . . Effects 193 | . 3 14 . . . 16 64 1 11 43 32 9 Message Errors 52 | . . 5 . . . 3 19 . 3 10 11 1 Matter Fused 47 | . . 3 . . . 4 13 . 3 11 8 5 Heat Flow Errors 19 | . . 1 . . . 3 6 . . 4 4 1 Energy Discharges 24 | . 1 2 . . . 1 9 . 2 5 4 . Parts Rejected 1 | . . . . . . . . . 1 . . . Parts Fused 4 | . . . . . . 1 1 . 1 1 . . Data Loss (minor) 19 | . 1 1 . . . 2 9 . . 3 2 1 Data Loss (major) 13 | . . 2 . . . 1 3 1 . 4 2 . Misfires 8 | . . . . . . 1 3 . . 3 . 1 Alerts 5 | . 1 . . . . . 1 . 1 1 1 . Weapon Failures 1 | . . . . . . . . . . 1 . . Overload Shots . | . . . . . . . . . . . . . Overflow Damage 405 | . 43 . 13 . . . 107 15 209 . 18 . Projectiles 57 | . . . . . . . . 15 42 . . . Explosions 110 | . 43 . 13 . . . 11 . 43 . . . Melee 238 | . . . . . . . 96 . 124 . 18 . Knockbacks 22 | . . . . . . . . 19 3 . . . Impact . | . . . . . . . . . . . . . Kinetic 20 | . . . . . . . . 17 3 . . . Secondary 2 | . . . . . . . . 2 . . . . Self-Inflicted Damage 280 | . . . 47 . . 64 151 . 18 . . . Shots 7 | . . . 1 . . 1 3 . 2 . . . Rammed 1 | . . . . 1 . . . . . . . . Targets Rammed 2 | . 1 . . 1 . . . . . . . . Kicked 1 | . 1 . . . . . . . . . . . Crushed . | . . . . . . . . . . . . . Highest Temperature 598 | . 9 140 117 . . 245 598 401 468 204 258 243 Average Temperature 112 | . 3 36 24 . . 127 142 105 139 70 106 139 Received Heat Transfer 2840 | . 288 36 582 . . 225 603 674 360 72 . . Effects 32 | . . . . . . . 17 3 11 . 1 . Shutdowns 11 | . . . . . . . 5 2 4 . . . Energy Bleed 4 | . . . . . . . 1 1 2 . . . Interference 5 | . . . . . . . 4 . . . 1 . Matter Decay 3 | . . . . . . . 3 . . . . . Damage (minor) 2 | . . . . . . . . . 2 . . . Damage (major) 6 | . . . . . . . 3 . 3 . . . Damage (core) 1 | . . . . . . . 1 . . . . . Siege Activations . | . . . . . . . . . . . . . Robots Corrupted . | . . . . . . . . . . . . . Combat Hostiles . | . . . . . . . . . . . . . Parts Fried 1 | . . . . . . . . 1 . . . . Impact Corruptions . | . . . . . . . . . . . . . Robots Melted 1 | . . . . . . . . . 1 . . . Combat Hostiles . | . . . . . . . . . . . . . Parts Melted 9 | . . . 1 . . . 1 3 4 . . . Heat Transferred 3222 | . . . 296 . . 111 840 766 1209 . . . Parts Sabotaged . | . . . . . . . . . . . . . Parts Stolen 3 | . . . . . . . . . . 2 1 . Parts Stripped . | . . . . . . . . . . . . . Power Chain Reactions 1 | . . . . . . . . 1 . . . . Latent Energy Used 1076 | . . . . . . 137 400 . 200 339 . . LE Corruption 20 | . . . . . . 3 6 . 3 8 . . Alert | -11 -10 -10 -9 -9 -9 -8 -8 -7 -6 -6 -6 -6 ------- Run | Yrd Mat Min Mat Min Exi Min Mat Fac Fac Low Low Dat Peak Influence 820 | . 250 120 619 241 . 84 371 820 465 . . . Initial 360 | . . 65 1 241 . . 13 168 360 . . . Average 195 | . 132 43 295 111 . 24 156 441 224 . . . Maximum Alert Level 3 | . 1 . 2 1 . . 1 3 2 . . . Low Security (%) 61 | 100 77 100 32 60 . 100 68 26 51 . . . Level 1 24 | . 22 . 31 39 . . 31 27 30 . . . Level 2 11 | . . . 35 . . . . 22 18 . . . Level 3 2 | . . . . . . . . 22 . . . . Level 4 . | . . . . . . . . . . . . . Level 5 . | . . . . . . . . . . . . . High Security . | . . . . . . . . . . . . . Max Security . | . . . . . . . . . . . . . Squads Dispatched 36 | . 6 1 3 . . . 5 12 9 . . . Investigation 8 | . 4 1 2 . . . . 1 . . . . Extermination 3 | . . . . . . . . 1 2 . . . Reinforcement 16 | . 2 . . . . . 4 3 7 . . . Assault 4 | . . . 1 . . . . 3 . . . . Garrison 5 | . . . . . . . 1 4 . . . . Intercept . | . . . . . . . . . . . . . Searches Triggered . | . . . . . . . . . . . . . Construction Impeded 5 | . . . . . . . . 2 3 . . . Haulers Reinforced . | . . . . . . . . . . . . . Active Scanning Responses . | . . . . . . . . . . . . . Cargo Convoy Interrupts . | . . . . . . . . . . . . . Stealth | -11 -10 -10 -9 -9 -9 -8 -8 -7 -6 -6 -6 -6 --------- Run | Yrd Mat Min Mat Min Exi Min Mat Fac Fac Low Low Dat Distress Signals 7 | . 1 . 1 . . . 5 . . . . . Communications Jammed . | . . . . . . . . . . . . . Distress Signals . | . . . . . . . . . . . . . Times Spotted 206 | . 26 8 54 . . 5 36 39 21 13 1 3 Peak Tracking Total 5 | . 4 3 5 . . 3 5 4 5 3 1 3 Tactical Retreats 12 | . 2 1 3 . . . 2 1 1 2 . . Traps | -11 -10 -10 -9 -9 -9 -8 -8 -7 -6 -6 -6 -6 ------- Run | Yrd Mat Min Mat Min Exi Min Mat Fac Fac Low Low Dat Traps Triggered 7 | . 3 . . . . . 2 2 . . . . Indirectly . | . . . . . . . . . . . . . Trap Hack Attempts 16 | . . . . 16 . . . . . . . . Triggered . | . . . . . . . . . . . . . Disarmed 5 | . 5 . . . . . . . . . . . Reprogrammed 2 | . . . . 2 . . . . . . . . Reused 4 | . . . . . . . . 3 1 . . . Traps Reconfigurated 22 | . . . . . . . 3 9 10 . . . Traps Extracted . | . . . . . . . . . . . . . Installed . | . . . . . . . . . . . . . Triggered 4 | . . . . . . . . 3 1 . . . Machines | -11 -10 -10 -9 -9 -9 -8 -8 -7 -6 -6 -6 -6 ---------- Run | Yrd Mat Min Mat Min Exi Min Mat Fac Fac Low Low Dat Machines Disabled 33 | . 5 . 1 . . . 8 10 9 . . . Max in Single Turn 3 | . 3 . 1 . . . 3 2 2 . . . Garrison Access 2 | . . . . . . . . 1 1 . . . Machines Repaired . | . . . . . . . . . . . . . Machines Dismantled . | . . . . . . . . . . . . . Machines Sabotaged . | . . . . . . . . . . . . . Overloaded Fab Kills . | . . . . . . . . . . . . . Hacking | -11 -10 -10 -9 -9 -9 -8 -8 -7 -6 -6 -6 -6 --------- Run | Yrd Mat Min Mat Min Exi Min Mat Fac Fac Low Low Dat Machines Accessed 37 | . 5 2 12 1 . . 5 4 3 . 1 4 Terminals 15 | . 4 1 8 . . . 1 . 1 . . . Fabricators 1 | . . . . . . . . 1 . . . . Repair Stations 6 | . 1 . 2 . . . 1 1 1 . . . Recycling Units 2 | . . . . . . . 1 1 . . . . Scanalyzers 4 | . . . 2 . . . 2 . . . . . Garrison Access 2 | . . . . . . . . 1 1 . . . Total Hacks 132 | . 12 3 35 1 . . 27 11 6 . 7 30 Successful 106 | . 8 3 25 1 . . 20 8 4 . 7 30 Failed 26 | . 4 . 10 . . . 7 3 2 . . . Catastrophic 3 | . . . 1 . . . . . 2 . . . Database Lockouts . | . . . . . . . . . . . . . Manual 2 | . . . . . 1 . . . . . 1 . Terminals 32 | . 9 2 15 . . . 2 . 4 . . . Fabricators 3 | . . . . . . . . 3 . . . . Repair Stations 31 | . 3 . 12 . . . 11 4 1 . . . Recycling Units 5 | . . . . . . . 4 1 . . . . Scanalyzers 18 | . . . 8 . . . 10 . . . . . Garrison Access 4 | . . . . . . . . 3 1 . . . Terminal Hacks 61 | . 6 3 10 1 . . 1 . 3 . 7 30 Record 20 | . . 1 1 . . . . . . . 7 11 Part Schematic 10 | . . . . . . . . . . . . 10 Robot Schematic 6 | . . . . . . . . . . . . 6 Prototype ID Bank 4 | . 1 . . . . . . . . . . 3 Open Door 2 | . . 1 . 1 . . . . . . . . Emergency Access Points 3 | . 1 . 2 . . . . . . . . . Unreport Threat 3 | . . . . . . . . . 3 . . . Locate Traps 6 | . 1 . 4 . . . 1 . . . . . Disarm Traps 1 | . 1 . . . . . . . . . . . Investigation Status 2 | . 1 . 1 . . . . . . . . . Registered Components 1 | . . . 1 . . . . . . . . . Zone Layout 3 | . 1 1 1 . . . . . . . . . Fabricator Hacks 2 | . . . . . . . . 2 . . . . Load Schematic 1 | . . . . . . . . 1 . . . . Build 1 | . . . . . . . . 1 . . . . Repair Station Hacks 23 | . 2 . 9 . . . 8 4 . . . . Scan Component 12 | . 1 . 5 . . . 4 2 . . . . Repair 11 | . 1 . 4 . . . 4 2 . . . . Recycling Unit Hacks 4 | . . . . . . . 3 1 . . . . Report Inventory 2 | . . . . . . . 1 1 . . . . Retrieve Matter 1 | . . . . . . . 1 . . . . . Retrieve Components 1 | . . . . . . . 1 . . . . . Scanalyzer 14 | . . . 6 . . . 8 . . . . . Insert Component 7 | . . . 3 . . . 4 . . . . . Analyze 7 | . . . 3 . . . 4 . . . . . Garrison Access Hacks 2 | . . . . . . . . 1 1 . . . Seal Access 2 | . . . . . . . . 1 1 . . . Unauthorized Hacks . | . . . . . . . . . . . . . Terminals . | . . . . . . . . . . . . . Fabricators . | . . . . . . . . . . . . . Repair Stations . | . . . . . . . . . . . . . Recycling Units . | . . . . . . . . . . . . . Scanalyzers . | . . . . . . . . . . . . . Garrison Access . | . . . . . . . . . . . . . Data Cores Recovered . | . . . . . . . . . . . . . Used . | . . . . . . . . . . . . . Hacking Detections 21 | . 4 1 9 . . . 4 1 2 . . . Full Trace Events 7 | . 2 . 4 . . . . 1 . . . . Feedback Events . | . . . . . . . . . . . . . Feedback Blocked . | . . . . . . . . . . . . . Robot Schematics Acquired 6 | . . . . . . . . . . . . 6 Robots Built . | . . . . . . . . . . . . . Authchips . | . . . . . . . . . . . . . Time . | . . . . . . . . . . . . . Total Robot Build Rating . | . . . . . . . . . . . . . Part Schematics Acquired 16 | . . . 2 . . . 4 . . . . 10 Parts Built 1 | . . . . . . . . 1 . . . . Authchips . | . . . . . . . . . . . . . Time 25 | . . . . . . . . 25 . . . . Total Part Build Rating 1 | . . . . . . . . 1 . . . . Parts Repaired 10 | . 1 . 4 . . . 4 1 . . . . Time 424 | . 26 . 158 . . . 158 82 . . . . Parts Recycled . | . . . . . . . . . . . . . Recycled Matter . | . . . . . . . . . . . . . Retrieved Matter . | . . . . . . . . . . . . . Retrieved Components 5 | . . . . . . . 5 . . . . . Parts Scanalyzed 7 | . . . 3 . . . 4 . . . . . Part Schematics Acquired 6 | . . . 2 . . . 4 . . . . . Parts Damaged 1 | . . . 1 . . . . . . . . . Bothacking | -11 -10 -10 -9 -9 -9 -8 -8 -7 -6 -6 -6 -6 ------------ Run | Yrd Mat Min Mat Min Exi Min Mat Fac Fac Low Low Dat Used RIF Installer . | . . . . . . . . . . . . . Robots Hacked . | . . . . . . . . . . . . . Non-combat . | . . . . . . . . . . . . . Combat . | . . . . . . . . . . . . . Robot Hacks Applied . | . . . . . . . . . . . . . Relay Couplers Released . | . . . . . . . . . . . . . Fabnet Peak Effective % . | . . . . . . . . . . . . . Robots Rewired . | . . . . . . . . . . . . . Allies Hacked . | . . . . . . . . . . . . . Hacks Repelled . | . . . . . . . . . . . . . Allies | -11 -10 -10 -9 -9 -9 -8 -8 -7 -6 -6 -6 -6 -------- Run | Yrd Mat Min Mat Min Exi Min Mat Fac Fac Low Low Dat Total Allies 3 | . . . . 3 . . . . . . . . Largest Group 3 | . . . . 3 3 3 . . . . . . Highest-Rated Group 40 | . . . . 40 40 40 . . . . . . Highest-Rated Ally 16 | . . . . 16 16 16 . . . . . . Total Orders 7 | . . . . 7 . . . . . . . . STAY 3 | . . . . 3 . . . . . . . . FOLLOW 4 | . . . . 4 . . . . . . . . Ally Attacks 3 | . . . . . . 3 . . . . . . Total Damage 50 | . . . . . . 50 . . . . . . Kills . | . . . . . . . . . . . . . Allies Corrupted . | . . . . . . . . . . . . . Allies Melted . | . . . . . . . . . . . . . Intel | -11 -10 -10 -9 -9 -9 -8 -8 -7 -6 -6 -6 -6 ------- Run | Yrd Mat Min Mat Min Exi Min Mat Fac Fac Low Low Dat Robot Analysis Total 134 | . . . . . . . . . . . . 134 Derelict Logs Recovered 5 | . . 2 . 1 . . . . . 1 1 . Drone Launches . | . . . . . . . . . . . . . Drone Recoveries . | . . . . . . . . . . . . . Exploration | -11 -10 -10 -9 -9 -9 -8 -8 -7 -6 -6 -6 -6 ------------- Run | Yrd Mat Min Mat Min Exi Min Mat Fac Fac Low Low Dat Turns Passed 15583 | 57 1937 1144 2299 1009 503 1073 2286 1607 1543 1148 791 186 Spaces Moved 8021 | 35 915 775 1193 628 363 610 868 889 681 572 411 81 Core 19 | 18 . . . . . . . . . . . 1 Treads 1807 | 1 . . 971 628 207 . . . . . . . Legs 4130 | 16 915 48 . . 156 610 823 . 499 572 411 80 Wheels 2065 | . . 727 222 . . . 45 889 182 . . . Hover . | . . . . . . . . . . . . . Flight . | . . . . . . . . . . . . . Fastest Speed 50 | 50 120 95 95 150 90 90 90 110 125 190 190 183 Average Speed 146 | 99 170 100 139 150 124 90 169 124 175 190 190 205 Slowest Speed 1350 | 160 190 190 160 150 170 90 260 205 425 190 190 1350 Overloaded Moves . | . . . . . . . . . . . . . Propulsion Burnouts . | . . . . . . . . . . . . . Robots Hopped . | . . . . . . . . . . . . . Cave-ins Triggered . | . . . . . . . . . . . . . Exploration Rate (%) 63 | 3 97 99 94 100 71 68 62 18 10 61 66 77 Regions Visited 12 Branch Regions 7 Pre-discovered Areas 27 | . . 1 . 2 . . . . . . 1 23 Known Exits Taken 2 | . . . 1 . 1 . . . . . . . Unknown Exits Taken 10 | 1 1 1 . 1 . 1 1 1 1 1 1 . Scrap Searched 6 | . . 2 . 1 . . . . . 2 1 . Spaces Dug 20 | . . . 2 . . . 16 1 1 . . . Terrain Destroyed 444 | . 30 . 51 . . 11 91 68 152 24 . 17 Melee 20 | . . . 2 . . . 16 1 1 . . . Projectile 29 | . . . . . . . 3 24 1 1 . . AOE 395 | . 30 . 49 . . 11 72 43 150 23 . 17 Terrain Rammed . | . . . . . . . . . . . . . Walls Destroyed . | . . . . . . . . . . . . . Machines Disabled . | . . . . . . . . . . . . . Actions | -11 -10 -10 -9 -9 -9 -8 -8 -7 -6 -6 -6 -6 --------- Run | Yrd Mat Min Mat Min Exi Min Mat Fac Fac Low Low Dat Total 10856 | 55 1157 1107 1651 695 414 1094 1499 1181 892 602 415 94 Wait 1792 | 6 143 283 296 32 30 445 414 86 57 . . . Move 8009 | 34 914 774 1192 627 362 609 867 888 680 571 410 81 Hop . | . . . . . . . . . . . . . Pick Up 156 | 8 15 11 21 5 3 5 38 21 22 6 1 . Fast Attach 39 | 3 1 1 5 1 5 . 7 14 2 . . . Attach 67 | 3 3 4 3 . 2 3 16 10 15 3 . 5 Detach 2 | . . . . . . . 1 1 . . . . Swap 146 | 1 2 7 22 6 1 6 42 28 27 2 . 2 Drop 112 | . 3 10 21 7 8 2 20 25 15 1 . . Fire 459 | . 75 17 88 . . 24 64 107 63 15 1 5 Melee 53 | . . . 3 . . . 30 1 11 4 3 1 Ram . | . . . . . . . . . . . . . Kick 1 | . 1 . . . . . . . . . . . Crush 1 | . . . . 1 . . . . . . . . Escape Stasis . | . . . . . . . . . . . . . Rewire 3 | . . . . . 3 . . . . . . . Trap 16 | . . . . 16 . . . . . . . . Miscellaneous . | . . . . . . . . . . . . . Route ------- -11/Scrapyard -10/Materials (discovered 6 exits: *Mat x3 / *Min x2 / [*Sub]) -10/Mines (discovered 2 exits: *Mat x2) -9/Materials (discovered 4 exits: *Mat x2 / *Min / [*Sto]) -9/Mines (discovered 3 exits: *Mat x2 / *Exi) -9/Exiles (discovered 2 exits: *Min x2) -8/Mines (discovered 2 exits: *Mat x2) -8/Materials (discovered 3 exits: *Fac x3) -7/Factory -6/Factory -6/Lower Caves -6/Lower Caves -6/Data Miner (discovered 1 exit: [*Pro]) History --------- Turn | Location | Event 11 | -11/Scrapyard | Discovered new exit (range 16) 58 | -11/Scrapyard | Entered Materials 311 | -10/Materials | Build established: Mutant 426 | -10/Materials | Discovered new exit (range 15) 704 | -10/Materials | Discovered new exit (range 10) 1073 | -10/Materials | Repaired Assault Rifle 1183 | -10/Materials | Discovered new exit (range 12) 1617 | -10/Materials | Discovered new exit (range 11) 1694 | -10/Materials | Discovered new exit (range 8) 1843 | -10/Materials | Discovered new exit (range 12) 1995 | -10/Materials | Entered Mines 2134 | -10/Mines | Lost 3 parts (2n1w) 2147 | -10/Mines | Discovered new exit (range 14) 2157 | -10/Mines | Learned location of Zion (-7) 2176 | -10/Mines | Received a Rocket Launcher from a helpful Derelict 2500 | -10/Mines | Joined a pair of Derelicts in attacking an 0b10 outpost 2814 | -10/Mines | Discovered new exit (range 9) 2821 | -10/Mines | Build established: Scavenger-Mutant 2877 | -10/Mines | Met a Derelict shopkeep closing up shop 3139 | -10/Mines | Entered Materials 3139 | -9/Materials | Evolved 2 slots: Propulsion x1, Utility x1 3140 | -9/Materials | Identified exit to Mines 3375 | -9/Materials | Repaired Beamcaster 3454 | -9/Materials | Discovered new exit (range 3) 3991 | -9/Materials | Build established: Mutant 4077 | -9/Materials | Repaired Imp. Ion Engine 4117 | -9/Materials | Repaired Imp. Light Armor Plating 4156 | -9/Materials | Repaired Adv. Treads 4206 | -9/Materials | Discovered new exit (range 15) 5033 | -9/Materials | Discovered new exit (range 6) 5139 | -9/Materials | First assault squad dispatched 5237 | -9/Materials | Core integrity fell below 50% 5438 | -9/Materials | Entered Mines 5443 | -9/Mines | Assisted by bots powering up and referring to "LRC-V3" 5546 | -9/Mines | Met a Derelict who couldn't figure out how to use a Trap Extractor 5808 | -9/Mines | Found a damaged Exp. Sensor Array with a note attached 5823 | -9/Mines | Deemed a non-threat by the Exiles lab entrance 5823 | -9/Mines | Discovered new exit (range 5) 5986 | -9/Mines | Discovered new exit (range 6) 6023 | -9/Mines | Learned location of Storage (-9) 6154 | -9/Mines | Discovered new exit (range 4) 6423 | -9/Mines | Found Prototype Device 6423 | -9/Mines | Identified Exp. Sensor Array 6447 | -9/Mines | Entered Exiles 6447 | -9/Exiles | Accompanied by 3 allies 6448 | -9/Exiles | Identified exit to Mines 6474 | -9/Exiles | Discovered exit to Mines (range 15) 6492 | -9/Exiles | Met 8R-AWN 6518 | -9/Exiles | Met EX-HEX 6615 | -9/Exiles | Met EX-DEC 6693 | -9/Exiles | Met EX-BIN 6710 | -9/Exiles | Aligned with FarCom system 6711 | -9/Exiles | Given EX-Vault access code 6746 | -9/Exiles | Opened EX-Vault 6754 | -9/Exiles | Found Prototype Energy Cannon 6754 | -9/Exiles | Identified Latent Energy Streamer 6761 | -9/Exiles | Found Prototype Leg 6762 | -9/Exiles | Identified Potential Leg 6768 | -9/Exiles | Found Prototype Device 6768 | -9/Exiles | Identified Trap Reconfigurator 6780 | -9/Exiles | Found Potential Leg 6810 | -9/Exiles | Exiles lab attacked by MAIN.C 6950 | -9/Exiles | Stole three prototypes: Potential Leg, Trap Reconfigurator, Latent Energy Streamer 6950 | -9/Exiles | Entered Mines 6950 | -8/Mines | Accompanied by 3 allies 7616 | -8/Mines | Discovered new exit (range 9) 7766 | -8/Mines | Discovered new exit (range 8) 8023 | -8/Mines | Entered Materials 8023 | -8/Materials | Evolved 2 slots: Power x1, Utility x1 8316 | -8/Materials | Build established: Scavenger-Mutant 9035 | -8/Materials | Repaired Deuterium Engine 9080 | -8/Materials | Repaired Gauss Rifle 9125 | -8/Materials | Repaired VSS Leg 9165 | -8/Materials | Repaired Lgt. Nuclear Core 9180 | -8/Materials | Discovered new exit (range 16) 9528 | -8/Materials | Discovered new exit (range 16) 9890 | -8/Materials | Build established: Mutant 9928 | -8/Materials | System corruption reached 10% 9941 | -8/Materials | Garrison activated, responded to threat 10010 | -8/Materials | Lost 4 parts (2p1u1w) 10051 | -8/Materials | Discovered new exit (range 12) 10165 | -8/Materials | Core integrity fell below 50% 10309 | -8/Materials | Entered Factory 10309 | -7/Factory | Evolved 2 slots: Propulsion x1, Utility x1 10311 | -7/Factory | FarCom data flow suspended 10495 | -7/Factory | Build established: Scavenger-Mutant 10525 | -7/Factory | Fabricated Huge Storage Unit (x1) 11081 | -7/Factory | Garrison activated, responded to threat 11128 | -7/Factory | Lost 5 parts (1p2n1u1w) 11509 | -7/Factory | First assault squad dispatched 11612 | -7/Factory | Repaired VSS Leg 11709 | -7/Factory | Garrison activated, responded to threat 11901 | -7/Factory | Discovered new exit (range 4) 11916 | -7/Factory | Entered another Factory area 11916 | -6/Factory | Evolved 2 slots: Utility x1, Weapon x1 12357 | -6/Factory | Discovered new exit (range 8) 12467 | -6/Factory | Build established: Hacker-Gunner 12650 | -6/Factory | Lost 4 parts (1n1u2w) 13398 | -6/Factory | Lost 3 parts (1p1n1w) 13459 | -6/Factory | Entered Lower Caves 13459 | -6/Lower Caves | Spotted UC-T4D(f) 13460 | -6/Lower Caves | Encountered a Master Thief 13462 | -6/Lower Caves | Potential Leg stolen by Master Thief 13462 | -6/Lower Caves | Spotted RD-42E(f) 13463 | -6/Lower Caves | Encountered a Master Thief 13468 | -6/Lower Caves | Trap Reconfigurator stolen by Master Thief 13655 | -6/Lower Caves | Learned Factory stockpile data 13809 | -6/Lower Caves | Build established: Scavenger-Mutant 13933 | -6/Lower Caves | System corruption reached 10% 14529 | -6/Lower Caves | Discovered new exit (range 16) 14607 | -6/Lower Caves | Entered another Lower Caves area 14607 | -6/Lower Caves | Spotted M8-YD3(f) 14608 | -6/Lower Caves | Encountered a Master Thief 14610 | -6/Lower Caves | Latent Energy Streamer stolen by Master Thief 14626 | -6/Lower Caves | Learned 8 Factory zone layouts 14804 | -6/Lower Caves | Learned location of 1 exit from Factory 14804 | -6/Lower Caves | Learned Research emergency access door positions 14804 | -6/Lower Caves | Learned Factory stockpile data 14804 | -6/Lower Caves | Learned Armory terminal intel 15273 | -6/Lower Caves | Discovered new exit (range 10) 15398 | -6/Lower Caves | Entered Data Miner 15398 | -6/Data Miner | Discovered new exit (range 6) 15435 | -6/Data Miner | Met Data Miner 15482 | -6/Data Miner | Learned location of Section 7 (-2) 15482 | -6/Data Miner | Acquired the access code to Warlord's prototype stash 15516 | -6/Data Miner | Received God Mode back door access code from Data Miner 15538 | -6/Data Miner | Interfaced with the Data Conduit 15576 | -6/Data Miner | Core integrity fell below 50% 15581 | -6/Data Miner | Core integrity fell below 20% 15584 | -6/Data Miner | Destroyed by Enhanced Grunt with Neutron Cannon Last Messages --------------- Downloaded encryption format records. Connection remotely terminated. System corrupted: Matter fused (-7). Slug penetrates Enhanced Grunt. Hvy. Missile Launcher destroyed. Flexi-carbon Leg destroyed. Slug penetrates Enhanced Grunt. The unstable cave ceiling collapses. Gauss Rifle destroyed. Flexi-carbon Leg destroyed. Lgt. Fission Core destroyed. Neutrino Core destroyed. Chainsword destroyed. Mic. Nuclear Core destroyed. Coil Gun destroyed. Neutrino Core destroyed. System corrupted: Heat flow error (+280). Flexi-carbon Leg destroyed. Potential Leg destroyed. System Shield destroyed. Map ----- +----------------------------------------------------+ | | | | | | | | | | | | | | | | | | | | | | | | | | | | | | | ?????????????????????????????????????????? | | ?????????????????????????????????????????? | | ?????????????????????????????????????????? | | ?????????????????????????????????????????? | | ?????????????????????????????????????####? | | ?????#######################???????### #? | | ????#""""""""""""""" #??????## #? | | ????"""""""" " # # #### < ##? | | ????""""""""" g ## | | ????"""" g | | ???"""""" @ g | | ???"""""" | | ???""""""" | | ????"""""" """"""""""""## | | ????""""""" ############? | | ????""""""" "" # ###???????????? | | ?????"""""" " " #?##?????????????? | | ??????######"## "#####????????????????? | | ???????????#"##; "#????????????????????? | | ???????????#"### "#????????????????????? | | ???????????#"## "#????????????????????? | | ????????????"## "#????????????????????? | | ?????????????# "#????????????????????? | | ?????????????### "#????????????????????? | | ???????????????# "##???????????????????? | | ??????????????## ""#???????????????????? | | ???????????#?## ""#???????????????????? | | ?????????"##"#"X ""#???????????????????? | | ?????????"""""" "####????????????????? | | ?????????#""""" X"""""????????????????? | | ?????????###"#"X "##"#????????????????? | | ???????????#?## X""""#????????????????? | | ??????????????## "##"#????????????????? | | ???????????????#######???????????????????? | | ?????????????????????????????????????????? | +----------------------------------------------------+ Best States ------------- Heat Dissipation 61 Energy Generation 28 Energy Capacity 480 Matter Stores 500 Matter Capacity 500 Sight Range 16 Robot Scan Range 20 Terrain Scan Density 10 Armor Coverage 450 Core Shielding 20 Evasion (%) 57 Targeting Accuracy 8 Melee Accuracy 6 Recoil Reduction 4 Offensive Hacking 20 Defensive Hacking 10 Item Schematics ----------------- Rocket Launcher | -9/Materials | Scanalyzed Adv. Treads | -9/Materials | Scanalyzed Hacking Suite | -8/Materials | Scanalyzed System Shield | -8/Materials | Scanalyzed Huge Storage Unit | -8/Materials | Scanalyzed Hcp. Matter Pod | -8/Materials | Scanalyzed Combat Drone Bay | -6/Data Miner | Free Lgt. Regenerative Plating | -6/Data Miner | Free Cld. Gravmag System | -6/Data Miner | Free Imp. Matter Compressor | -6/Data Miner | Free Neutron Cannon | -6/Data Miner | Free Adv. Medium Treads | -6/Data Miner | Free Adv. Transmission Jammer | -6/Data Miner | Free HERF Cannon | -6/Data Miner | Free Imp. Linear Gravjet | -6/Data Miner | Free Adv. Remote Datajack | -6/Data Miner | Free Robot Schematics ------------------ S-27 Virus | -6/Data Miner | Free I-36 Angel | -6/Data Miner | Free I-47 Archangel | -6/Data Miner | Free A-15 Conveyor | -6/Data Miner | Free M-30 Cleanser | -6/Data Miner | Free O-32 Director | -6/Data Miner | Free Fabricated ------------ Huge Storage Unit | x1 | -7/Factory Alien Tech Used ----------------- None Achievements -------------- None Challenges ------------ None Game ------ Seed GravitonDamperAnalyzer Manual? 0 Play Time 03:08:24 Cumulative 35.0 hours Start 2024.04.22 @ 05:55:29 End 2024.04.22 @ 11:40:39 Sessions 3 Manual Loads 0 Difficulty Rogue Special Mode None Game No. 36 Rogue 36 Adventurer 0 Explorer 0 Win Type - Total 0 Types 0/0/0/0/0/0/0/0/0 Lore% 17 Gallery% 25 Achievement% 100 Wizard Run 0 Options --------- Layout 1 ASCII 0 Keyboard 0 Movement Mouse Keybinds 0 Fullscreen 1 Font 24/Smallcaps Map View 50x35 Zoom Use 0% Tactical HUD 0 Map Filters NONE Filters NONE Steam 1 RUN: 213071d1-45e1-4cde-a025-57383442d641